Workbook

Sheet Obsah
E1: 100
C3: A. Souhrnné informace
C4: Zdroje dat jsou uvedeny v zápatí jednotlivých tabulek
C8: Tabulka 1 | E8: ='A1'!H3 -> Veřejné výdaje na vzdělávání a školské služby v běžných cenách, jejich podíl na HDP v letech 2010 až 2018
C10: Tabulka 2 | E10: ='A2'!H3 -> Veřejné výdaje na vzdělávání a školské služby ve stálých cenách roku 2015, jejich podíl na HDP v letech 2010 až 2018
C12: Tabulka 3 | E12: ='A3'!H3 -> HDP a výdaje na vzdělávání a školské služby na jednoho obyvatele v letech 2010 až 2018
C14: Tabulka 4 | E14: ='A4'!H3 -> HDP a výdaje na vzdělávání a školské služby na jednoho ekonomicky aktivního obyvatele v letech 2010 až 2018
C16: Tabulka 5 | E16: ='A5'!H3 -> Struktura veřejných výdajů na vzdělávání a školské služby v letech 2010 až 2018 v běžných cenách
C18: Tabulka 6 | E18: ='A6'!H3 -> Struktura veřejných výdajů na vzdělávání a školské služby v letech 2010 až 2018 ve stálých cenách roku 2015
C20: Tabulka 7 | E20: ='A7'!H3 -> Vybrané ukazatele kapitoly 333-MŠMT

Sheet A1
A1: =IF(KNIHOVNA!C4="","ŠABLONA",IF(KNIHOVNA!C4="T","TISK","ELEKTRO")) -> ŠABLONA | B1: 0 | C1: =CONCATENATE(D1,F1,IF(G1<>"",".",""),G1,IF(H1<>"",".",""),H1,IF(I1<>"",".",""),I1,"") -> A1 | D1: =IF(KNIHOVNA!J4=""," ?",KNIHOVNA!J4) -> A | E1: =CONCATENATE(C1,R1) -> A1 | F1: 1 | S1: pro CD
A2: konst
A3: konst | B3: 13x12 | D3: Tab. A1: | H3: Veřejné výdaje na vzdělávání a školské služby v běžných cenách, jejich podíl na HDP v letech 2010 až 2018
A4: konst | B4: 156 | D4: Tab. A1: | H4: Veřejné výdaje na školství v běžných cenách, jejich podíl na HDP v letech 2001 až 2012
A5: odstr | B5: 0
A6: =IF(COUNTBLANK(C6:IV6)=254,"odstr","OK") -> odstr | B6: Řádky pro
A7: =IF(COUNTBLANK(C7:IV7)=254,"odstr","OK") -> odstr | B7: ročenku PaM
A8: konst | R8: v mil. Kč | S8: =IF(KNIHOVNA!E4=""," ","") -> 
A9: konst | J9: 2010 | K9: 2011 | L9: 2012 | M9: 2013 | N9: 2014 | O9: 2015 | P9: 2016 | Q9: 2017 | R9: 2018
A10: konst
A11: konst
A12: konst
A13: konst
A14: =IF(COUNTBLANK(C14:IV14)=254,"odstr",IF(AND($A$1="TISK",SUM(J14:R14)=0),"odstr","OK")) -> OK | B14: OK | E14: Hrubý domácí produkt v běžných cenách | J14: 3992870 | K14: 4062323 | L14: 4088912 | M14: 4142811 | N14: 4345766 | O14: 4625378 | P14: 4767873 | Q14: 5110743 | R14: 5408766
A15: OK | B15: OK | E15: Veřejné výdaje na vzdělávání a školské služby v běžných cenách (konsolidované) | J15: =J16+J21+J22 -> 152699.155 | K15: =K16+K21+K22 -> 156047.9144 | L15: 154612.741 | M15: 155366.0078 | N15: 160869.8011 | O15: 166218.8576 | P15: 162246.6978 | Q15: 181554.6244 | R15: 221524.6672
A16: OK | B16: OK | E16: v tom | F16: ze státního rozpočtu (nekonsolidované)1) | J16: 119216.0779 | K16: 126290.0885 | L16: 126306.3936 | M16: 126498.3842 | N16: 127336.8334 | O16: 130807.1801 | P16: 132913.9758 | Q16: 148366.7943 | R16: 177884.5365
F17: z toho | H17: Ministerstvo školství, mládeže a tělovýchovy | J17: 117096.0532 | K17: 124502.0655 | L17: 124197.6228 | M17: 124411.4876 | N17: 125097.6331 | O17: 128295.8076 | P17: 130377.1273 | Q17: 145784.1999 | R17: 174969.9217
H18: Ministerstvo obrany | J18: 1093.52692 | K18: 955.6730125 | L18: 998.5042683 | M18: 1082.611493 | N18: 1124.345386 | O18: 1241.730269 | P18: 1177.95883 | Q18: 1180.931503 | R18: 1321.643584
H19: Ministerstvo vnitra | J19: 859.3343 | K19: 697.8908253 | L19: 896.3569922 | M19: 773.7462718 | N19: 896.5239276 | O19: 836.1141624 | P19: 566.5231237 | Q19: 634.1815661 | R19: 708.5725996
H20: Ministerstvo financí a Všeobecná pokladní správa | J20: 154.67422 | K20: 123.737045 | L20: 212.9208658 | M20: 230.3769178 | N20: 218.331 | O20: 433.5280799 | P20: 782.1008231 | Q20: 705.148097 | R20: 879.5324481
A21: OK | B21: OK | F21: z územních rozpočtů (konsolidované)2) | J21: 113762.5174 | K21: 114719.6557 | L21: 113285.5987 | M21: 114238.4188 | N21: 120271.6184 | O21: 125128.0406 | P21: 123722.0632 | Q21: 140246.2679 | R21: 165421.7998
A22: OK | B22: OK | F22: konsolidace výdajů3) | J22: -80279.44035 | K22: -84961.82981 | L22: -84979.25124 | M22: -85370.79508 | N22: -86738.65069 | O22: -89716.36308 | P22: -94389.34131 | Q22: -107058.4378 | R22: -121781.6691
A23: OK | B23: OK | E23: Veřejné výdaje na vzdělávání a školské služby v % HDP | J23: =J15/J14 -> 0.03824295682 | K23: 0.03841346797 | L23: 0.03781268489 | M23: 0.03750255752 | N23: 0.03701759393 | O23: 0.0359362754 | P23: 0.03402915677 | Q23: 0.03552411546 | R23: 0.04095660031
A24: konst | B24: stop | D24: =IF(D25="","","Komentáře:") -> Komentáře: | R24: Zdroj: monitor.statnipokladna.cz, ČSÚ
A25: =IF(COUNTBLANK(D24:E24)=2,"odstr","OK") -> OK | D25: 1 | E25: =Komentáře!C5 -> Celkové výdaje na vzdělávání a školské služby - Oddíl 31 a 32 odvětvového třídění rozpočtové skladby po konsolidaci na úrovni územních rozpočtů a státního rozpočtu. | S25: =IF(KNIHOVNA!H4=""," ","") -> 
A26: =IF(COUNTBLANK(D25:E25)=2,"odstr","OK") -> OK | D26: 2 | E26: =CONCATENATE(Komentáře!C5," ",Komentáře!C6) -> Celkové výdaje na vzdělávání a školské služby - Oddíl 31 a 32 odvětvového třídění rozpočtové skladby po konsolidaci na úrovni územních rozpočtů a státního rozpočtu. Konsolidovány položky rozpočtové skladby: na úrovni územních rozpočtů - 5321, 5323, 5325, 5329, 5342, 5344, 5345, 5347, 5349, 5366, 5367, 5368, 5369, 5641, 5642, 5643, 5649, 6341, 6342, 6345, 6349, 6441, 6442, 6443, 6449;
A27: =IF(COUNTBLANK(D26:E26)=2,"odstr","OK") -> OK | D27: 3 | E27: =CONCATENATE(Komentáře!C5," ",Komentáře!C7) -> Celkové výdaje na vzdělávání a školské služby - Oddíl 31 a 32 odvětvového třídění rozpočtové skladby po konsolidaci na úrovni územních rozpočtů a státního rozpočtu. Konsolidovány položky rozpočtové skladby: na úrovni státního rozpočtu - 5321, 5323, 5329, 5342, 5345, 5346, 5349, 6341, 6342, 6343, 6344, 6345, 6349, 6361, 6362 a podseskupení položek 64xx.
A28: =IF(COUNTBLANK(D27:E27)=2,"odstr","OK") -> OK
A29: stop

Sheet A2
A1: =IF(KNIHOVNA!C4="","ŠABLONA",IF(KNIHOVNA!C4="T","TISK","ELEKTRO")) -> ŠABLONA | B1: 0 | C1: =CONCATENATE(D1,F1,IF(G1<>"",".",""),G1,IF(H1<>"",".",""),H1,IF(I1<>"",".",""),I1,"") -> A2 | D1: =IF(KNIHOVNA!J4=""," ?",KNIHOVNA!J4) -> A | E1: =CONCATENATE(C1,R1) -> A2 | F1: 2 | S1: pro CD
A2: konst
A3: konst | B3: 10x12 | D3: Tab. A2: | H3: Veřejné výdaje na vzdělávání a školské služby ve stálých cenách roku 2015, jejich podíl na HDP v letech 2010 až 2018
A4: konst | B4: 120 | D4: Tab. A2: | H4: Veřejné výdaje na školství ve stálých cenách roku 2005, jejich podíl na HDP v letech 2001 až 2012
A5: odstr | B5: 0
A6: =IF(COUNTBLANK(C6:IV6)=254,"odstr","OK") -> odstr | B6: Řádky pro
A7: =IF(COUNTBLANK(C7:IV7)=254,"odstr","OK") -> odstr | B7: ročenku PaM
A8: konst | R8: v mil. Kč | S8: =IF(KNIHOVNA!E4=""," ","") -> 
A9: konst | D9: Případné aktualizace údajů publikovaných ČSÚ byly zpětně promítnuty i do předchozích období. | J9: 2010 | K9: 2011 | L9: 2012 | M9: 2013 | N9: 2014 | O9: 2015 | P9: 2016 | Q9: 2017 | R9: 2018
A10: konst
A11: konst
A12: konst
A13: konst
E14: Hrubý domácí produkt ve stálých cenách | J14: 4252881 | K14: 4327747 | L14: 4293774 | M14: 4291803 | N14: 4388888 | O14: 4625378 | P14: 4742737 | Q14: 4987876 | R14: 5146556
E15: Index spotřebitelských cen (2015 = 100) | J15: 1.087707732 | K15: 1.071633233 | L15: 1.051651848 | M15: 1.018056 | N15: 1.004 | O15: 1 | P15: 0.9930486594 | Q15: 0.9688279604 | R15: 0.9489010386
A16: =IF(COUNTBLANK(C16:IV16)=254,"odstr",IF(AND($A$1="TISK",SUM(J16:R16)=0),"odstr","OK")) -> OK | B16: OK | E16: Veřejné výdaje na vzdělávání a školské služby ve stálých cenách | J16: 166092.0515 | K16: 167226.1311 | L16: 162598.7748 | M16: 158171.2965 | N16: 161513.2803 | O16: 166218.8576 | P16: 161118.8657 | Q16: 175895.1965 | R16: =R17+R22+R23 -> 210204.9868
A17: =IF(COUNTBLANK(C17:IV17)=254,"odstr",IF(AND($A$1="TISK",SUM(J17:R17)=0),"odstr","OK")) -> OK | B17: OK | E17: v tom | F17: ze státního rozpočtu (nekonsolidované)1) | J17: ='A1'!J16*'A2'!J$26 -> 129672.2497 | K17: ='A1'!K16*'A2'!K$26 -> 135336.6559 | L17: ='A1'!L16*'A2'!L$26 -> 132830.3522 | M17: ='A1'!M16*'A2'!M$26 -> 128782.439 | N17: ='A1'!N16*'A2'!N$26 -> 127846.1807 | O17: ='A1'!O16*'A2'!O$26 -> 130807.1801 | P17: ='A1'!P16*'A2'!P$26 -> 131990.0455 | Q17: ='A1'!Q16*'A2'!Q$26 -> 143741.8987 | R17: ='A1'!R16*'A2'!R$26 -> 168794.8214
G18: z toho | H18: Ministerstvo školství, mládeže a tělovýchovy | J18: ='A1'!J17*'A2'!J$26 -> 127366.2824 | K18: ='A1'!K17*'A2'!K$26 -> 133420.551 | L18: ='A1'!L17*'A2'!L$26 -> 130612.6596 | M18: ='A1'!M17*'A2'!M$26 -> 126657.8614 | N18: ='A1'!N17*'A2'!N$26 -> 125598.0236 | O18: ='A1'!O17*'A2'!O$26 -> 128295.8076 | P18: ='A1'!P17*'A2'!P$26 -> 129470.8314 | Q18: ='A1'!Q17*'A2'!Q$26 -> 141239.809 | R18: ='A1'!R17*'A2'!R$26 -> 166029.1404
H19: Ministerstvo obrany | J19: ='A1'!J18*'A2'!J$26 -> 1189.437686 | K19: ='A1'!K18*'A2'!K$26 -> 1024.13096 | L19: ='A1'!L18*'A2'!L$26 -> 1050.078859 | M19: ='A1'!M18*'A2'!M$26 -> 1102.159126 | N19: ='A1'!N18*'A2'!N$26 -> 1128.842768 | O19: ='A1'!O18*'A2'!O$26 -> 1241.730269 | P19: ='A1'!P18*'A2'!P$26 -> 1169.770437 | Q19: ='A1'!Q18*'A2'!Q$26 -> 1144.119459 | R19: ='A1'!R18*'A2'!R$26 -> 1254.10897
H20: Ministerstvo vnitra | J20: ='A1'!J19*'A2'!J$26 -> 934.7045621 | K20: ='A1'!K19*'A2'!K$26 -> 747.8830015 | L20: ='A1'!L19*'A2'!L$26 -> 942.6554873 | M20: ='A1'!M19*'A2'!M$26 -> 787.7170345 | N20: ='A1'!N19*'A2'!N$26 -> 900.1100233 | O20: ='A1'!O19*'A2'!O$26 -> 836.1141624 | P20: ='A1'!P19*'A2'!P$26 -> 562.5850285 | Q20: ='A1'!Q19*'A2'!Q$26 -> 614.4128332 | R20: ='A1'!R19*'A2'!R$26 -> 672.3652756
H21: Ministerstvo financí a Všeobecná pokladní správa | J21: ='A1'!J20*'A2'!J$26 -> 168.240345 | K21: ='A1'!K20*'A2'!K$26 -> 132.6007295 | L21: ='A1'!L20*'A2'!L$26 -> 223.918622 | M21: ='A1'!M20*'A2'!M$26 -> 234.5366035 | N21: ='A1'!N20*'A2'!N$26 -> 219.204324 | O21: ='A1'!O20*'A2'!O$26 -> 433.5280799 | P21: ='A1'!P20*'A2'!P$26 -> 776.6641739 | Q21: ='A1'!Q20*'A2'!Q$26 -> 683.1671926 | R21: ='A1'!R20*'A2'!R$26 -> 834.5892535
A22: =IF(COUNTBLANK(C22:IV22)=254,"odstr",IF(AND($A$1="TISK",SUM(J22:R22)=0),"odstr","OK")) -> OK | B22: OK | F22: z územních rozpočtů (konsolidované)2) | J22: ='A1'!J21*'A2'!J26 -> 123740.3698 | K22: ='A1'!K21*'A2'!K$26 -> 122937.3956 | L22: ='A1'!L21*'A2'!L$26 -> 119137.0092 | M22: ='A1'!M21*'A2'!M$26 -> 116301.1077 | N22: ='A1'!N21*'A2'!N$26 -> 120752.7049 | O22: ='A1'!O21*'A2'!O$26 -> 125128.0406 | P22: ='A1'!P21*'A2'!P$26 -> 122862.029 | Q22: ='A1'!Q21*'A2'!Q$26 -> 135874.5057 | R22: ='A1'!R21*'A2'!R$26 -> 156968.9177
A23: =IF(COUNTBLANK(C23:IV23)=254,"odstr",IF(AND($A$1="TISK",SUM(J23:R23)=0),"odstr","OK")) -> OK | B23: OK | F23: konsolidace výdajů3) | J23: ='A1'!J22*'A2'!J26 -> -87320.56796 | K23: ='A1'!K22*'A2'!K$26 -> -91047.92037 | L23: ='A1'!L22*'A2'!L$26 -> -89368.58661 | M23: ='A1'!M22*'A2'!M$26 -> -86912.25016 | N23: ='A1'!N22*'A2'!N$26 -> -87085.60529 | O23: ='A1'!O22*'A2'!O$26 -> -89716.36308 | P23: ='A1'!P22*'A2'!P$26 -> -93733.20884 | Q23: ='A1'!Q22*'A2'!Q$26 -> -103721.2079 | R23: ='A1'!R22*'A2'!R$26 -> -115558.7523
A24: =IF(COUNTBLANK(C24:IV24)=254,"odstr",IF(AND($A$1="TISK",SUM(#REF!)=0),"odstr","OK")) ->  | B24: OK | E24: Veřejné výdaje na vzdělávání a školské služby v % HDP | J24: =J16/J14 -> 0.03905400868 | K24: =K16/K14 -> 0.03864045913 | L24: 0.03786849862 | M24: 0.03685427697 | N24: 0.0368005017 | O24: 0.0359362754 | P24: 0.03397170573 | Q24: 0.03526454877 | R24: 0.0408438161
A25: =IF(COUNTBLANK(C25:IV25)=254,"odstr",IF(AND($A$1="TISK",SUM(J24:R24)=0),"odstr","OK")) -> OK | B25: OK | D25: =IF(D27="","","Komentáře:") -> Komentáře: | R25: Zdroj: monitor.statnipokladna.cz, ČSÚ
J26: 1.087707732 | K26: 1.071633233 | L26: 1.051651848 | M26: 1.018056 | N26: 1.004 | O26: 1 | P26: 0.9930486594 | Q26: 0.9688279604 | R26: 0.9489010386
A27: konst | B27: stop | D27: 1) | E27: =Komentáře!C5 -> Celkové výdaje na vzdělávání a školské služby - Oddíl 31 a 32 odvětvového třídění rozpočtové skladby po konsolidaci na úrovni územních rozpočtů a státního rozpočtu. | S27: =IF(KNIHOVNA!H4=""," ","") -> 
A28: =IF(COUNTBLANK(D27:E27)=2,"odstr","OK") -> OK | D28: 2) | E28: =CONCATENATE(Komentáře!C5," ",Komentáře!C6) -> Celkové výdaje na vzdělávání a školské služby - Oddíl 31 a 32 odvětvového třídění rozpočtové skladby po konsolidaci na úrovni územních rozpočtů a státního rozpočtu. Konsolidovány položky rozpočtové skladby: na úrovni územních rozpočtů - 5321, 5323, 5325, 5329, 5342, 5344, 5345, 5347, 5349, 5366, 5367, 5368, 5369, 5641, 5642, 5643, 5649, 6341, 6342, 6345, 6349, 6441, 6442, 6443, 6449;
A29: =IF(COUNTBLANK(D28:E28)=2,"odstr","OK") -> OK | D29: 3) | E29: =CONCATENATE(Komentáře!C5," ",Komentáře!C7) -> Celkové výdaje na vzdělávání a školské služby - Oddíl 31 a 32 odvětvového třídění rozpočtové skladby po konsolidaci na úrovni územních rozpočtů a státního rozpočtu. Konsolidovány položky rozpočtové skladby: na úrovni státního rozpočtu - 5321, 5323, 5329, 5342, 5345, 5346, 5349, 6341, 6342, 6343, 6344, 6345, 6349, 6361, 6362 a podseskupení položek 64xx.
A30: =IF(COUNTBLANK(D29:E29)=2,"odstr","OK") -> OK | D30: 4) | E30: Od ledna 2017 je nově zavedena časová řada bazických indexů se základem průměr roku 2015 = 100. Z této časové řady jsou počítány indexy k dalším základům (předchozí měsíc = 100, stejné období předchozího roku = 100 a index klouzavých průměrů za posledních 12 měsíců k průměru 12 předcházejících měsíců). Indexy vypočtené z dosavadní časové řady bazických indexů průměr roku 2005 = 100 zůstávají platné, nedochází k revizi již publikovaných údajů.
A31: stop

Sheet A3
A1: =IF(KNIHOVNA!C4="","ŠABLONA",IF(KNIHOVNA!C4="T","TISK","ELEKTRO")) -> ŠABLONA | B1: FUNKCE | C1: =CONCATENATE(D1,F1,IF(G1<>"",".",""),G1,IF(H1<>"",".",""),H1,IF(I1<>"",".",""),I1,"") -> A3 | D1: =IF(KNIHOVNA!J4=""," ?",KNIHOVNA!J4) -> A | E1: =CONCATENATE(C1,R1) -> A3 | F1: 3 | S1: pro CD
A2: konst
A3: konst | B3: 1x12 | D3: Tab. A3: | H3: HDP a výdaje na vzdělávání a školské služby na jednoho obyvatele v letech 2010 až 2018
A4: konst | B4: 12 | D4: Tab. A3: | H4: HDP a výdaje na školství na jednoho obyvatele v letech 2001 až 2012
A5: odstr | B5: 0
A6: =IF(COUNTBLANK(C6:IV6)=254,"odstr","OK") -> odstr | B6: Řádky pro
A7: =IF(COUNTBLANK(C7:IV7)=254,"odstr","OK") -> odstr | B7: ročenku PaM
A8: konst | S8: =IF(KNIHOVNA!E4=""," ","") -> 
A9: konst | D9: Případné aktualizace údajů publikovaných ČSÚ byly zpětně promítnuty i do předchozích období. | J9: 2010 | K9: 2011 | L9: 2012 | M9: 2013 | N9: 2014 | O9: 2015 | P9: 2016 | Q9: 2017 | R9: 2018
A10: konst
A11: konst
A12: konst
A13: konst
A14: =IF(COUNTBLANK(C14:IV14)=254,"odstr",IF(AND($A$1="TISK",SUM(J14:R14)=0),"odstr","OK")) -> OK | B14: OK | E14: Střední stav obyvatelstva (v tis.) | J14: 10517.247 | K14: 10496.672 | L14: 10509.286 | M14: 10510.719 | N14: 10524.783 | O14: 10542.942 | P14: 10565.284 | Q14: 10588.526 | R14: 10626.43
A15: konst | B15: OK | D15: V běžných cenách
A16: =IF(COUNTBLANK(C16:IV16)=254,"odstr",IF(AND($A$1="TISK",SUM(J16:R16)=0),"odstr","OK")) -> OK | B16: OK | E16: HDP v Kč na jednoho obyvatele | J16: =('A1'!J14*1000)/'A3'!J14 -> 379649.7315 | K16: =('A1'!K14*1000)/'A3'!K14 -> 387010.5687 | L16: =('A1'!L14*1000)/'A3'!L14 -> 389076.099 | M16: =('A1'!M14*1000)/'A3'!M14 -> 394151.0566 | N16: =('A1'!N14*1000)/'A3'!N14 -> 412907.8956 | O16: =('A1'!O14*1000)/'A3'!O14 -> 438717.9594 | P16: =('A1'!P14*1000)/'A3'!P14 -> 451277.3154 | Q16: =('A1'!Q14*1000)/'A3'!Q14 -> 482668.0314 | R16: =('A1'!R14*1000)/'A3'!R14 -> 508991.8251
A17: =IF(COUNTBLANK(C17:IV17)=254,"odstr",IF(AND($A$1="TISK",SUM(J17:R17)=0),"odstr","OK")) -> OK | B17: OK | E17: Výdaje na vzdělávání a školské služby na jednoho obyvatele | J17: =('A1'!J15*1000)/'A3'!J14 -> 14518.92829 | K17: =('A1'!K15*1000)/'A3'!K14 -> 14866.41808 | L17: =('A1'!L15*1000)/'A3'!L14 -> 14712.01193 | M17: =('A1'!M15*1000)/'A3'!M14 -> 14781.67267 | N17: =('A1'!N15*1000)/'A3'!N14 -> 15284.85681 | O17: =('A1'!O15*1000)/'A3'!O14 -> 15765.88941 | P17: =('A1'!P15*1000)/'A3'!P14 -> 15356.58651 | Q17: =('A1'!Q15*1000)/'A3'!Q14 -> 17146.35488 | R17: =('A1'!R15*1000)/'A3'!R14 -> 20846.57474
A18: konst | B18: OK | D18: Ve stálých cenách roku 2015
A19: =IF(COUNTBLANK(C19:IV19)=254,"odstr",IF(AND($A$1="TISK",SUM(J19:R19)=0),"odstr","OK")) -> OK | B19: OK | E19: HDP v Kč na jednoho obyvatele | J19: =('A2'!J14*1000)/'A3'!J14 -> 404372.0757 | K19: =('A2'!K14*1000)/'A3'!K14 -> 412297.0595 | L19: =('A2'!L14*1000)/'A3'!L14 -> 408569.526 | M19: =('A2'!M14*1000)/'A3'!M14 -> 408326.3 | N19: =('A2'!N14*1000)/'A3'!N14 -> 417005.0822 | O19: =('A2'!O14*1000)/'A3'!O14 -> 438717.9594 | P19: =('A2'!P14*1000)/'A3'!P14 -> 448898.2028 | Q19: =('A2'!Q14*1000)/'A3'!Q14 -> 471064.2444 | R19: =('A2'!R14*1000)/'A3'!R14 -> 484316.5579
A20: =IF(COUNTBLANK(C20:IV20)=254,"odstr",IF(AND($A$1="TISK",SUM(J20:R20)=0),"odstr","OK")) -> OK | B20: OK | E20: Výdaje na vzdělávání a školské služby na jednoho obyvatele | J20: =('A2'!J16*1000)/'A3'!J14 -> 15792.35055 | K20: =('A2'!K16*1000)/'A3'!K14 -> 15931.34768 | L20: =('A2'!L16*1000)/'A3'!L14 -> 15471.91453 | M20: =('A2'!M16*1000)/'A3'!M14 -> 15048.57056 | N20: =('A2'!N16*1000)/'A3'!N14 -> 15345.99624 | O20: =('A2'!O16*1000)/'A3'!O14 -> 15765.88941 | P20: =('A2'!P16*1000)/'A3'!P14 -> 15249.83765 | Q20: =('A2'!Q16*1000)/'A3'!Q14 -> 16611.86802 | R20: =('A2'!R16*1000)/'A3'!R14 -> 19781.33642
A21: konst | B21: stop | D21: =IF(D22="","","Komentáře:") ->  | R21: Zdroj: monitor.statnipokladna.cz, ČSÚ | S21: =IF(KNIHOVNA!H4=""," ","") -> 
A22: =IF(COUNTBLANK(D22:E22)=2,"odstr","OK") -> odstr
A23: =IF(COUNTBLANK(D23:E23)=2,"odstr","OK") -> odstr
A24: stop

Sheet A4
A1: =IF(KNIHOVNA!C4="","ŠABLONA",IF(KNIHOVNA!C4="T","TISK","ELEKTRO")) -> ŠABLONA | B1: FUNKCE | C1: =CONCATENATE(D1,F1,IF(G1<>"",".",""),G1,IF(H1<>"",".",""),H1,IF(I1<>"",".",""),I1,"") -> A4 | D1: =IF(KNIHOVNA!J4=""," ?",KNIHOVNA!J4) -> A | E1: =CONCATENATE(C1,R1) -> A4 | F1: 4 | S1: pro CD
A2: konst
A3: konst | B3: 1x12 | D3: Tab. A4: | H3: HDP a výdaje na vzdělávání a školské služby na jednoho ekonomicky aktivního obyvatele v letech 2010 až 2018
A4: konst | B4: 12 | D4: Tab. A4: | H4: HDP a výdaje na školství na jednoho ekonomicky aktivního obyvatele
A5: OK | B5: 0
A6: =IF(COUNTBLANK(C6:IV6)=254,"odstr","OK") -> odstr | B6: Řádky pro
A7: =IF(COUNTBLANK(C7:IV7)=254,"odstr","OK") -> odstr | B7: ročenku PaM
A8: konst | S8: =IF(KNIHOVNA!E4=""," ","") -> 
A9: konst | D9: Případné aktualizace údajů publikovaných ČSÚ byly zpětně promítnuty i do předchozích období. | J9: 2010 | K9: 2011 | L9: 2012 | M9: 2013 | N9: 2014 | O9: 2015 | P9: 2016 | Q9: 2017 | R9: 2018
A10: konst
A11: konst
A12: konst
A13: konst
A14: =IF(COUNTBLANK(C14:IV14)=254,"odstr",IF(AND($A$1="TISK",SUM(J14:R14)=0),"odstr","OK")) -> OK | B14: OK | E14: Roční průměr ekonomicky aktivního obyvatelstva (v tis.) | J14: 5268.889599 | K14: 5222.970418 | L14: 5256.947639 | M14: 5306.022404 | N14: 5297.885243 | O14: 5310.174555 | P14: 5350.022712 | Q14: 5377.140074 | R14: 5415.411027
A15: konst | B15: OK | D15: V běžných cenách
A16: =IF(COUNTBLANK(C16:IV16)=254,"odstr",IF(AND($A$1="TISK",SUM(J16:R16)=0),"odstr","OK")) -> OK | B16: OK | E16: HDP na 1 ekonomicky aktivního obyvatele | J16: =('A1'!J14*1000)/'A4'!J14 -> 757820.016 | K16: =('A1'!K14*1000)/'A4'!K14 -> 777780.2045 | L16: =('A1'!L14*1000)/'A4'!L14 -> 777811.057 | M16: =('A1'!M14*1000)/'A4'!M14 -> 780775.2558 | N16: =('A1'!N14*1000)/'A4'!N14 -> 820283.1509 | O16: =('A1'!O14*1000)/'A4'!O14 -> 871040.6695 | P16: =('A1'!P14*1000)/'A4'!P14 -> 891187.4316 | Q16: =('A1'!Q14*1000)/'A4'!Q14 -> 950457.4792 | R16: =('A1'!R14*1000)/'A4'!R14 -> 998772.9413
A17: =IF(COUNTBLANK(C17:IV17)=254,"odstr",IF(AND($A$1="TISK",SUM(J17:R17)=0),"odstr","OK")) -> OK | B17: OK | E17: Výdaje na vzdělávání a školské služby na 1 ekon. aktivního obyvatele | J17: =('A1'!J15*1000)/'A4'!J14 -> 28981.27815 | K17: =('A1'!K15*1000)/'A4'!K14 -> 29877.23497 | L17: =('A1'!L15*1000)/'A4'!L14 -> 29411.1244 | M17: =('A1'!M15*1000)/'A4'!M14 -> 29281.06894 | N17: =('A1'!N15*1000)/'A4'!N14 -> 30364.90858 | O17: =('A1'!O15*1000)/'A4'!O14 -> 31301.95738 | P17: =('A1'!P15*1000)/'A4'!P14 -> 30326.35682 | Q17: =('A1'!Q15*1000)/'A4'!Q14 -> 33764.16123 | R17: =('A1'!R15*1000)/'A4'!R14 -> 40906.34415
A18: konst | B18: OK | D18: Ve stálých cenách roku 2015
A19: =IF(COUNTBLANK(C19:IV19)=254,"odstr",IF(AND($A$1="TISK",SUM(J19:R19)=0),"odstr","OK")) -> OK | B19: OK | E19: HDP na 1 ekonomicky aktivního obyvatele | J19: =('A2'!J14*1000)/'A4'!J14 -> 807168.3645 | K19: =('A2'!K14*1000)/'A4'!K14 -> 828598.7959 | L19: =('A2'!L14*1000)/'A4'!L14 -> 816780.8193 | M19: =('A2'!M14*1000)/'A4'!M14 -> 808855.0467 | N19: =('A2'!N14*1000)/'A4'!N14 -> 828422.625 | O19: =('A2'!O14*1000)/'A4'!O14 -> 871040.6695 | P19: =('A2'!P14*1000)/'A4'!P14 -> 886489.1338 | Q19: =('A2'!Q14*1000)/'A4'!Q14 -> 927607.6002 | R19: =('A2'!R14*1000)/'A4'!R14 -> 950353.7172
A20: =IF(COUNTBLANK(C20:IV20)=254,"odstr",IF(AND($A$1="TISK",SUM(J20:R20)=0),"odstr","OK")) -> OK | B20: OK | E20: Výdaje na vzdělávání a školské služby na 1 ekon. aktivního obyvatele | J20: =('A2'!J16*1000)/'A4'!J14 -> 31523.16031 | K20: =('A2'!K16*1000)/'A4'!K14 -> 32017.43791 | L20: =('A2'!L16*1000)/'A4'!L14 -> 30930.26333 | M20: =('A2'!M16*1000)/'A4'!M14 -> 29809.76792 | N20: =('A2'!N16*1000)/'A4'!N14 -> 30486.36822 | O20: =('A2'!O16*1000)/'A4'!O14 -> 31301.95738 | P20: =('A2'!P16*1000)/'A4'!P14 -> 30115.54798 | Q20: =('A2'!Q16*1000)/'A4'!Q14 -> 32711.66346 | R20: =('A2'!R16*1000)/'A4'!R14 -> 38816.07245
A21: konst | B21: stop | R21: Zdroj: monitor.statnipokladna.cz, ČSÚ | S21: =IF(KNIHOVNA!H4=""," ","") -> 
A22: =IF(COUNTBLANK(D22:E22)=2,"odstr","OK") -> odstr
A23: =IF(COUNTBLANK(D23:E23)=2,"odstr","OK") -> odstr
A24: stop

Sheet A5
A1: =IF(KNIHOVNA!C4="","ŠABLONA",IF(KNIHOVNA!C4="T","TISK","ELEKTRO")) -> ŠABLONA | B1: FUNKCE | C1: =CONCATENATE(D1,F1,IF(G1<>"",".",""),G1,IF(H1<>"",".",""),H1,IF(I1<>"",".",""),I1,"") -> A5 | D1: =IF(KNIHOVNA!J4=""," ?",KNIHOVNA!J4) -> A | E1: =CONCATENATE(C1,R1) -> A5 | F1: 5 | S1: pro CD
A2: konst
A3: konst | B3: 15x12 | D3: Tab. A5: | H3: Struktura veřejných výdajů na vzdělávání a školské služby v letech 2010 až 2018 v běžných cenách
A4: konst | B4: 180 | D4: Tab. A5: | H4: Struktura veřejných výdajů na školství v letech 2001 až 2012 v běžných cenách
A5: odstr | B5: 0
A6: =IF(COUNTBLANK(C6:IV6)=254,"odstr","OK") -> odstr | B6: Řádky pro
A7: =IF(COUNTBLANK(C7:IV7)=254,"odstr","OK") -> odstr | B7: ročenku PaM
A8: konst | R8: v mil. Kč | S8: =IF(KNIHOVNA!E4=""," ","") -> 
A9: konst | J9: 2010 | K9: 2011 | L9: 2012 | M9: 2013 | N9: 2014 | O9: 2015 | P9: 2016 | Q9: 2017 | R9: 2018
A10: konst
A11: konst
A12: konst
A13: konst
H14: CHECK! | J14: =J15-'A1'!J15 -> 0 | K14: =K15-'A1'!K15 -> 0 | L14: =L15-'A1'!L15 -> 0 | M14: =M15-'A1'!M15 -> 0 | N14: =N15-'A1'!N15 -> 0 | O14: =O15-'A1'!O15 -> 0 | P14: =P15-'A1'!P15 -> 0 | Q14: =Q15-'A1'!Q15 -> 0 | R14: =R15-'A1'!R15 -> 0
A15: =IF(COUNTBLANK(C15:IV15)=254,"odstr",IF(AND($A$1="TISK",SUM(J15:R15)=0),"odstr","OK")) -> OK | B15: OK | E15: Veřejné výdaje na vzdělávání a školské služby v běžných cenách (konsolidované) | J15: =J16+J18+J20+J21+J25+J26+J27+J28+J29 -> 152699.155 | K15: 156047.9144 | L15: 154612.741 | M15: 155366.0078 | N15: 160869.8011 | O15: 166218.8576 | P15: 162246.6978 | Q15: 181554.6244 | R15: 221524.6672
A16: OK | B16: OK | E16: v tom | F16: předškolní vzdělávání1) | J16: 16288.18495 | K16: 16281.23532 | L16: 16933.53716 | M16: 18076.87514 | N16: 19319.25537 | O16: 19337.61628 | P16: 18816.69827 | Q16: 21530.5549 | R16: 24852.33331
A17: OK | B17: OK | G17: z toho mateřské školy2) | J17: 15904.28073 | K17: 15928.97576 | L17: 16565.92389 | M17: 17722.81915 | N17: 18958.73855 | O17: 18960.37449 | P17: 18397.32254 | Q17: 21079.21419 | R17: 24286.30669
A18: OK | B18: OK | F18: základní vzdělávání3) | J18: 52383.30473 | K18: 54543.44398 | L18: 52974.08343 | M18: 54331.80058 | N18: 58180.00354 | O18: 60857.98617 | P18: 61101.49441 | Q18: 71149.3588 | R18: 83506.02298
A19: OK | B19: OK | G19: z toho základní školy, včetně školních družin a klubů4) | J19: 47262.38321 | K19: 49099.24676 | L19: 47888.46793 | M19: 49397.32025 | N19: 53180.6584 | O19: 55842.98159 | P19: 56078.53447 | Q19: 65531.8365 | R19: 77067.77333
A20: OK | B20: OK | F20: základní umělecké školy5) | J20: 3814.40437 | K20: 3776.468201 | L20: 3909.054312 | M20: 4004.472568 | N20: 4128.495364 | O20: 4273.739777 | P20: 4547.369164 | Q20: 4975.747524 | R20: 5753.333755
A21: OK | B21: OK | F21: střední vzdělávání včetně konzervatoří a VOŠ6) | J21: 35166.06779 | K21: 34465.2815 | L21: 33991.9927 | M21: 32667.41241 | N21: 33203.83947 | O21: 34609.06196 | P21: 33096.42273 | Q21: 35905.04578 | R21: 43179.04415
A22: OK | B22: OK | F22: z toho | G22: gymnázia, včetně sportovních škol7) | J22: 7576.95332 | K22: 7556.382944 | L22: 7546.502679 | M22: 7605.834997 | N22: 7728.024084 | O22: 7974.16907 | P22: 7615.012749 | Q22: 8419.898546 | R22: 10001.144
A23: OK | B23: OK | G23: střední odborné školy a konzervatoře, včetně VOŠ8) | J23: 15936.232 | K23: 15700.01186 | L23: 15648.82167 | M23: 15245.23755 | N23: 15648.36148 | O23: 18604.73771 | P23: 17822.54742 | Q23: 19382.85064 | R23: 23728.26869
A24: OK | B24: OK | G24: střední odborná učiliště, učiliště, SPV9) | J24: 11652.83349 | K24: 11208.8772 | L24: 10796.65437 | M24: 9813.856408 | N24: 9827.390412 | O24: 8030.079687 | P24: 7658.770561 | Q24: 8102.214331 | R24: 9449.088055
A25: OK | B25: OK | F25: stravování žáků MŠ, ZŠ a SŠ, VOŠ10) | J25: 3699.09036 | K25: 3275.541551 | L25: 3043.409118 | M25: 3122.269544 | N25: 3210.901038 | O25: 3307.924223 | P25: 3474.012853 | Q25: 3760.763817 | R25: 4326.326325
A26: OK | B26: OK | F26: školská zařízení pro výkon ústavní a ochranné výchovy11) | J26: 1458.23644 | K26: 1448.531609 | L26: 1220.331814 | M26: 1273.770026 | N26: 1203.217609 | O26: 2991.277218 | P26: 3066.925452 | Q26: 3216.548075 | R26: 3571.116362
A27: OK | B27: OK | F27: vysoké školy12) | J27: 32540.28132 | K27: 34428.75206 | L27: 34473.06789 | M27: 34442.00568 | N27: 32991.6477 | O27: 33883.35617 | P27: 32078.32203 | Q27: 33933.39547 | R27: 47619.4591
A28: OK | B28: OK | F28: státní správa13) | J28: 754.86316 | K28: 809.3637281 | L28: 780.6668525 | M28: 722.2768278 | N28: 754.5003978 | O28: 774.9581734 | P28: 751.2852779 | Q28: 862.0475244 | R28: 923.8864038
A29: OK | B29: OK | F29: ostatní výdaje14) | J29: 6594.72187 | K29: 7019.2965 | L29: 7286.597724 | M29: 6725.125068 | N29: 7877.940599 | O29: 6182.937656 | P29: 5314.167574 | Q29: 6221.16252 | R29: 7793.144824
A30: konst | B30: OK | D30: V procentech z veřejných výdajů na vzdělávání a školské služby
A31: =IF(COUNTBLANK(C31:IV31)=254,"odstr",IF(AND($A$1="TISK",SUM(J31:R31)=0),"odstr","OK")) -> OK | B31: OK | E31: Předškolní vzdělávání | J31: 0.09960724488 | K31: 0.09370931531 | L31: 0.09881280323 | M31: 0.1032741356 | N31: 0.1080936109 | O31: 0.1056900345 | P31: 0.1084562967 | Q31: 0.1105071095 | R31: =R16/R$15 -> 0.1121876567
A32: OK | B32: OK | F32: z toho mateřské školy | J32: 0.09734581803 | K32: 0.09168159497 | L32: 0.09666765799 | M32: 0.1025595398 | N32: 0.1060763124 | O32: 0.1036868076 | P32: 0.1061321116 | Q32: 0.1082980064 | R32: =R17/R$15 -> 0.1096325163
A33: OK | B33: OK | E33: Základní vzdělávání | J33: 0.3371720479 | K33: 0.3139697553 | L33: 0.309175531 | M33: 0.3157450056 | N33: 0.3255505077 | O33: 0.3327852655 | P33: 0.3522656706 | Q33: 0.365199874 | R33: 0.3769603811
A34: OK | B34: OK | F34: z toho základní školy, včetně školních družin a klubů | J34: 0.3079151586 | K34: 0.2867082518 | L34: 0.2828935941 | M34: 0.2910787352 | N34: 0.3020036268 | O34: 0.30879477 | P34: 0.3261097721 | Q34: 0.3392294018 | R34: 0.3478970279
A35: OK | B35: OK | E35: Základní umělecké školy | J35: 0.02370366074 | K35: 0.02195429677 | L35: 0.02311858015 | M35: 0.02320000403 | N35: 0.02312691139 | O35: 0.02337211282 | P35: 0.02621740695 | Q35: 0.02553982776 | R35: 0.02597152645
A36: OK | B36: OK | E36: Střední vzdělávání | J36: 0.2217681774 | K36: 0.1955171406 | L36: 0.1945447183 | M36: 0.1858641636 | N36: 0.1821820563 | O36: 0.1859533148 | P36: 0.1888539249 | Q36: 0.1823736976 | R36: 0.1949175444
A37: OK | B37: OK | E37: z toho | F37: gymnázia, včetně sportovních škol | J37: 0.04854463332 | K37: 0.04349699107 | L37: 0.04399761068 | M37: 0.04398926458 | N37: 0.04323139004 | O37: 0.04359295406 | P37: 0.04389313223 | Q37: 0.0432181813 | R37: 0.04514686387
A38: OK | B38: OK | F38: střední odborné školy a konzervatoře, včetně VOŠ | J38: 0.08998544383 | K38: 0.08082828728 | L38: 0.08061680754 | M38: 0.07832690736 | N38: 0.07734191277 | O38: 0.091711243 | P38: 0.09321725896 | Q38: 0.09029692463 | R38: 0.1071134379
A39: OK | B39: OK | E39: z toho | F39: střední odborná učiliště, učiliště, SPV | J39: 0.07595630849 | K39: 0.06449462856 | L39: 0.06300205737 | M39: 0.05679144997 | N39: 0.05498988903 | O39: 0.04391665918 | P39: 0.04415588384 | Q39: 0.04158755191 | R39: 0.04265478953
A40: OK | B40: OK | E40: Stravování žáků MŠ, ZŠ a SŠ, VOŠ | J40: 0.02379964757 | K40: 0.01885507947 | L40: 0.01797311344 | M40: 0.01806814847 | N40: 0.01796683396 | O40: 0.01808732137 | P40: 0.02002907735 | Q40: 0.01930348348 | R40: 0.01952977237
A41: OK | B41: OK | E41: Školská zařízení pro výkon ústavní a ochranné výchovy | J41: 0.01715459987 | K41: 0.02409922529 | L41: 0.01834853349 | M41: 0.02232945421 | N41: 0.02104641608 | O41: 0.02051127582 | P41: 0.02301258035 | Q41: 0.02073032409 | R41: 0.01612062623
A42: OK | B42: OK | E42: Vysoké školy | J42: 0.2100799376 | K42: 0.1970099657 | L42: 0.1999105209 | M42: 0.1980807033 | N42: 0.1833190641 | O42: 0.1840370451 | P42: 0.1837500329 | Q42: 0.1730554673 | R42: 0.2149623322
A43: OK | B43: OK | E43: Státní správa | J43: 0.004676388149 | K43: 0.004679243604 | L43: 0.004577302617 | M43: 0.004200869343 | N43: 0.004242933177 | O43: 0.004259560158 | P43: 0.004366822316 | Q43: 0.004473521979 | R43: 0.004170580258
A44: OK | B44: OK | E44: Ostatní výdaje | J44: 0.06203829588 | K44: 0.130205978 | L44: 0.1335388968 | M44: 0.1292375158 | N44: 0.1344716664 | O44: 0.12530407 | P44: 0.09304818786 | Q44: 0.09881669432 | R44: 0.03517958032
A45: konst | B45: stop | D45: =IF(D46="","","Komentáře:") -> Komentáře: | R45: Zdroj: monitor.statnipokladna.cz | S45: =IF(KNIHOVNA!H4=""," ","") -> 
A46: =IF(COUNTBLANK(D46:E46)=2,"odstr","OK") -> OK | D46: 1) | E46: =Komentáře!C8 -> § 3111, 3112, 3115
A47: =IF(COUNTBLANK(D47:E47)=2,"odstr","OK") -> OK | D47: 2) | E47: =Komentáře!C9 -> § 3111
A48: OK | D48: 3) | E48: =Komentáře!C10 -> § 3113, 3114, 3117, 3118, 3119, 3143
A49: OK | D49: 4) | E49: =Komentáře!C11 -> § 3113, 3117, 3118, 3143
A50: OK | D50: 5) | E50: =Komentáře!C12 -> § 3231
A51: OK | D51: 6) | E51: =Komentáře!C13 -> § 312x; 3150
A52: OK | D52: 7) | E52: =Komentáře!C14 -> § 3121, 3128
A53: stop | D53: 8) | E53: =Komentáře!C15 -> § 3122, 3124, 3126, 3127, 3150
D54: 9) | E54: =Komentáře!C16 -> § 3123, 3125
D55: 10) | E55: =Komentáře!C17 -> § 3141, 3142
D56: 11) | E56: =Komentáře!C18 -> § 313x
D57: 12) | E57: =Komentáře!C19 -> § 321x, 322x
D58: 13) | E58: =Komentáře!C20 -> § 326x
D59: 14) | E59: =Komentáře!C21 -> § 3144, 3145, 3146, 3147, 3148, 3149, 3232, 3233, 3239, 3280, 329x

Sheet A6
A1: =IF(KNIHOVNA!C4="","ŠABLONA",IF(KNIHOVNA!C4="T","TISK","ELEKTRO")) -> ŠABLONA | B1: FUNKCE | C1: =CONCATENATE(D1,F1,IF(G1<>"",".",""),G1,IF(H1<>"",".",""),H1,IF(I1<>"",".",""),I1,"") -> A6 | D1: =IF(KNIHOVNA!J4=""," ?",KNIHOVNA!J4) -> A | E1: =CONCATENATE(C1,R1) -> A6 | F1: 6 | S1: pro CD
A2: konst
A3: konst | B3: 15x12 | D3: Tab. A6: | H3: Struktura veřejných výdajů na vzdělávání a školské služby v letech 2010 až 2018 ve stálých cenách roku 2015
A4: konst | B4: 180 | D4: Tab. A6: | H4: Struktura veřejných výdajů na školství v letech 2001 až 2012 ve stálých cenách roku 2005
A5: odstr | B5: 0
A6: =IF(COUNTBLANK(C6:IV6)=254,"odstr","OK") -> odstr | B6: Řádky pro
A7: =IF(COUNTBLANK(C7:IV7)=254,"odstr","OK") -> odstr | B7: ročenku PaM
A8: konst | R8: v mil. Kč | S8: =IF(KNIHOVNA!E4=""," ","") -> 
A9: konst | J9: 2010 | K9: 2011 | L9: 2012 | M9: 2013 | N9: 2014 | O9: 2015 | P9: 2016 | Q9: 2017 | R9: 2018
A10: konst
A11: konst
A12: konst
A13: konst
A14: =IF(COUNTBLANK(C14:IV14)=254,"odstr",IF(AND($A$1="TISK",SUM(J14:R14)=0),"odstr","OK")) -> OK | B14: OK | E14: Veřejné výdaje na vzdělávání a školské služby ve stálých cenách roku 2015 | J14: =J15+J17+J19+J20+J24+J25+J26+J27+J28 -> 166092.0515 | K14: =K15+K17+K19+K20+K24+K25+K26+K27+K28 -> 167226.1311 | L14: 162598.7748 | M14: 158171.2965 | N14: 161513.2803 | O14: 166218.8576 | P14: 161118.8657 | Q14: 175895.1965 | R14: 210204.9868
A15: OK | B15: OK | E15: v tom | F15: předškolní vzdělávání 1) | J15: ='A5'!J16*'A2'!J$26 -> 17716.7847 | K15: ='A5'!K16*'A2'!K$26 -> 17447.51284 | L15: ='A5'!L16*'A2'!L$26 -> 17808.18565 | M15: ='A5'!M16*'A2'!M$26 -> 18403.2712 | N15: ='A5'!N16*'A2'!N$26 -> 19396.53239 | O15: ='A5'!O16*'A2'!O$26 -> 19337.61628 | P15: ='A5'!P16*'A2'!P$26 -> 18685.89699 | Q15: ='A5'!Q16*'A2'!Q$26 -> 20859.40359 | R15: ='A5'!R16*'A2'!R$26 -> 23582.40489
A16: OK | B16: OK | G16: z toho mateřské školy2) | J16: ='A5'!J17*'A2'!J$26 -> 17299.20912 | K16: ='A5'!K17*'A2'!K$26 -> 17070.0198 | L16: ='A5'!L17*'A2'!L$26 -> 17421.58447 | M16: ='A5'!M17*'A2'!M$26 -> 18042.82237 | N16: ='A5'!N17*'A2'!N$26 -> 19034.57351 | O16: ='A5'!O17*'A2'!O$26 -> 18960.37449 | P16: ='A5'!P17*'A2'!P$26 -> 18269.43648 | Q16: ='A5'!Q17*'A2'!Q$26 -> 20422.13209 | R16: ='A5'!R17*'A2'!R$26 -> 23045.30164
A17: OK | B17: OK | F17: základní vzdělávání 3) | J17: ='A5'!J18*'A2'!J$26 -> 56977.72556 | K17: ='A5'!K18*'A2'!K$26 -> 58450.56722 | L17: ='A5'!L18*'A2'!L$26 -> 55710.29274 | M17: ='A5'!M18*'A2'!M$26 -> 55312.81557 | N17: ='A5'!N18*'A2'!N$26 -> 58412.72355 | O17: ='A5'!O18*'A2'!O$26 -> 60857.98617 | P17: ='A5'!P18*'A2'!P$26 -> 60676.75711 | Q17: ='A5'!Q18*'A2'!Q$26 -> 68931.48817 | R17: ='A5'!R18*'A2'!R$26 -> 79238.95193
A18: OK | B18: OK | G18: z toho základní školy, včetně školních družin a klubů4) | J18: ='A5'!J19*'A2'!J$26 -> 51407.65963 | K18: ='A5'!K19*'A2'!K$26 -> 52616.38455 | L18: ='A5'!L19*'A2'!L$26 -> 50361.99579 | M18: ='A5'!M19*'A2'!M$26 -> 50289.23827 | N18: ='A5'!N19*'A2'!N$26 -> 53393.38104 | O18: ='A5'!O19*'A2'!O$26 -> 55842.98159 | P18: ='A5'!P19*'A2'!P$26 -> 55688.71348 | Q18: ='A5'!Q19*'A2'!Q$26 -> 63489.0755 | R18: ='A5'!R19*'A2'!R$26 -> 73129.69016
A19: OK | B19: OK | F19: základní umělecké školy 5) | J19: ='A5'!J20*'A2'!J$26 -> 4148.957125 | K19: ='A5'!K20*'A2'!K$26 -> 4046.988828 | L19: ='A5'!L20*'A2'!L$26 -> 4110.964191 | M19: ='A5'!M20*'A2'!M$26 -> 4076.777325 | N19: ='A5'!N20*'A2'!N$26 -> 4145.009346 | O19: ='A5'!O20*'A2'!O$26 -> 4273.739777 | P19: ='A5'!P20*'A2'!P$26 -> 4515.758852 | Q19: ='A5'!Q20*'A2'!Q$26 -> 4820.643325 | R19: ='A5'!R20*'A2'!R$26 -> 5459.344375
A20: OK | B20: OK | F20: střední vzdělávání včetně konzervatoří a VOŠ 6) | J20: ='A5'!J21*'A2'!J$26 -> 38250.40383 | K20: ='A5'!K21*'A2'!K$26 -> 36934.14105 | L20: ='A5'!L21*'A2'!L$26 -> 35747.74194 | M20: ='A5'!M21*'A2'!M$26 -> 33257.25521 | N20: ='A5'!N21*'A2'!N$26 -> 33336.65483 | O20: ='A5'!O21*'A2'!O$26 -> 34609.06196 | P20: ='A5'!P21*'A2'!P$26 -> 32866.35823 | Q20: ='A5'!Q21*'A2'!Q$26 -> 34785.81227 | R20: ='A5'!R21*'A2'!R$26 -> 40972.63984
A21: OK | B21: OK | F21: z toho | G21: gymnázia, včetně sportovních škol7) | J21: ='A5'!J22*'A2'!J$26 -> 8241.510708 | K21: ='A5'!K22*'A2'!K$26 -> 8097.671085 | L21: ='A5'!L22*'A2'!L$26 -> 7936.293488 | M21: ='A5'!M22*'A2'!M$26 -> 7743.165953 | N21: ='A5'!N22*'A2'!N$26 -> 7758.936181 | O21: ='A5'!O22*'A2'!O$26 -> 7974.16907 | P21: ='A5'!P22*'A2'!P$26 -> 7562.078202 | Q21: ='A5'!Q22*'A2'!Q$26 -> 8157.433135 | R21: ='A5'!R22*'A2'!R$26 -> 9490.095924
A22: OK | B22: OK | G22: střední odborné školy a konzervatoře, včetně VOŠ8) | J22: ='A5'!J23*'A2'!J$26 -> 17333.96276 | K22: ='A5'!K23*'A2'!K$26 -> 16824.65447 | L22: ='A5'!L23*'A2'!L$26 -> 16457.11223 | M22: ='A5'!M23*'A2'!M$26 -> 15520.50556 | N22: ='A5'!N23*'A2'!N$26 -> 15710.95492 | O22: ='A5'!O23*'A2'!O$26 -> 18604.73771 | P22: ='A5'!P23*'A2'!P$26 -> 17698.65682 | Q22: ='A5'!Q23*'A2'!Q$26 -> 18778.64765 | R22: ='A5'!R23*'A2'!R$26 -> 22515.77881
A23: OK | B23: OK | G23: střední odborná učiliště, učiliště, SPV9) | J23: ='A5'!J24*'A2'!J$26 -> 12674.87708 | K23: ='A5'!K24*'A2'!K$26 -> 12011.80531 | L23: ='A5'!L24*'A2'!L$26 -> 11354.32152 | M23: ='A5'!M24*'A2'!M$26 -> 9991.055399 | N23: ='A5'!N24*'A2'!N$26 -> 9866.699973 | O23: ='A5'!O24*'A2'!O$26 -> 8030.079687 | P23: ='A5'!P24*'A2'!P$26 -> 7605.531839 | Q23: ='A5'!Q24*'A2'!Q$26 -> 7849.651784 | R23: ='A5'!R24*'A2'!R$26 -> 8966.249469
A24: OK | B24: OK | F24: stravování žáků MŠ, ZŠ a SŠ, VOŠ 10) | J24: ='A5'!J25*'A2'!J$26 -> 4023.529184 | K24: ='A5'!K25*'A2'!K$26 -> 3510.179183 | L24: ='A5'!L25*'A2'!L$26 -> 3200.606823 | M24: ='A5'!M25*'A2'!M$26 -> 3178.645243 | N24: ='A5'!N25*'A2'!N$26 -> 3223.744642 | O24: ='A5'!O25*'A2'!O$26 -> 3307.924223 | P24: ='A5'!P25*'A2'!P$26 -> 3449.863806 | Q24: ='A5'!Q25*'A2'!Q$26 -> 3643.533138 | R24: ='A5'!R25*'A2'!R$26 -> 4105.255543
A25: OK | B25: OK | F25: školská zařízení pro výkon ústavní a ochranné výchovy 11) | J25: ='A5'!J26*'A2'!J$26 -> 1586.13505 | K25: ='A5'!K26*'A2'!K$26 -> 1552.294611 | L25: ='A5'!L26*'A2'!L$26 -> 1283.364207 | M25: ='A5'!M26*'A2'!M$26 -> 1296.769217 | N25: ='A5'!N26*'A2'!N$26 -> 1208.030479 | O25: ='A5'!O26*'A2'!O$26 -> 2991.277218 | P25: ='A5'!P26*'A2'!P$26 -> 3045.606209 | Q25: ='A5'!Q26*'A2'!Q$26 -> 3116.281711 | R25: ='A5'!R26*'A2'!R$26 -> 3388.636024
A26: OK | B26: OK | F26: vysoké školy12) | J26: ='A5'!J27*'A2'!J$26 -> 35394.31558 | K26: ='A5'!K27*'A2'!K$26 -> 36894.99488 | L26: ='A5'!L27*'A2'!L$26 -> 36253.66556 | M26: ='A5'!M27*'A2'!M$26 -> 35063.89053 | N26: ='A5'!N27*'A2'!N$26 -> 33123.61429 | O26: ='A5'!O27*'A2'!O$26 -> 33883.35617 | P26: ='A5'!P27*'A2'!P$26 -> 31855.33469 | Q26: ='A5'!Q27*'A2'!Q$26 -> 32875.62232 | R26: ='A5'!R27*'A2'!R$26 -> 45186.15419
A27: OK | B27: OK | F27: státní správa13) | J27: ='A5'!J28*'A2'!J$26 -> 821.0704954 | K27: ='A5'!K28*'A2'!K$26 -> 867.3410687 | L27: ='A5'!L28*'A2'!L$26 -> 820.9897381 | M27: ='A5'!M28*'A2'!M$26 -> 735.3182582 | N27: ='A5'!N28*'A2'!N$26 -> 757.5183994 | O27: ='A5'!O28*'A2'!O$26 -> 774.9581734 | P27: ='A5'!P28*'A2'!P$26 -> 746.062838 | Q27: ='A5'!Q28*'A2'!Q$26 -> 835.1757448 | R27: ='A5'!R28*'A2'!R$26 -> 876.6767681
A28: OK | B28: OK | F28: ostatní výdaje14) | J28: ='A5'!J29*'A2'!J$26 -> 7173.129966 | K28: ='A5'!K29*'A2'!K$26 -> 7522.111402 | L28: ='A5'!L29*'A2'!L$26 -> 7662.963962 | M28: ='A5'!M29*'A2'!M$26 -> 6846.553926 | N28: ='A5'!N29*'A2'!N$26 -> 7909.452361 | O28: ='A5'!O29*'A2'!O$26 -> 6182.937656 | P28: ='A5'!P29*'A2'!P$26 -> 5277.226985 | Q28: ='A5'!Q29*'A2'!Q$26 -> 6027.236195 | R28: ='A5'!R29*'A2'!R$26 -> 7394.923217
A29: konst | B29: OK | D29: V procentech z veřejných výdajů na vzdělávání a školské služby
A30: =IF(COUNTBLANK(C30:IV30)=254,"odstr",IF(AND($A$1="TISK",SUM(J30:R30)=0),"odstr","OK")) -> OK | B30: OK | E30: Předškolní vzdělávání | J30: =J15/J$14 -> 0.1066684681 | K30: =K15/K$14 -> 0.1043348472 | L30: 0.1095222622 | M30: 0.1163502583 | N30: 0.1200924924 | O30: 0.1163382817 | P30: 0.1159758475 | Q30: 0.1185899559 | R30: 0.1121876567
A31: OK | B31: OK | F31: z toho mateřské školy | J31: =J16/J$14 -> 0.1041543467 | K31: 0.1020774665 | L31: 0.1071446233 | M31: 0.1140714072 | N31: 0.1178514452 | O31: 0.114068733 | P31: 0.1133910446 | Q31: 0.1161039784 | R31: 0.1096325163
A32: OK | B32: OK | E32: Základní vzdělávání | J32: 0.3430490806 | K32: 0.3495301054 | L32: 0.3426243082 | M32: 0.3497019801 | N32: 0.3616589512 | O32: 0.3661316594 | P32: 0.3765962282 | Q32: 0.3918895431 | R32: 0.3769603811
A33: OK | B33: OK | F33: z toho základní školy, včetně školních družin a klubů | J33: 0.3095130632 | K33: 0.3146421209 | L33: 0.3097317053 | M33: 0.3179416202 | N33: 0.3305819864 | O33: 0.3359605666 | P33: 0.3456374475 | Q33: 0.3609483191 | R33: 0.3478970279
A34: OK | B34: OK | E34: Základní umělecké školy | J34: 0.02497986561 | K34: 0.0242006964 | L34: 0.02528287311 | M34: 0.02577444464 | N34: 0.0256635822 | O34: 0.02571152177 | P34: 0.02802749903 | Q34: 0.02740633867 | R34: 0.02597152645
A35: OK | B35: OK | E35: Střední vzdělávání | J35: 0.2302964138 | K35: 0.2208634548 | L35: 0.219852468 | M35: 0.2102610015 | N35: 0.2064019427 | O35: 0.2082138119 | P35: 0.2039882672 | Q35: 0.1977644243 | R35: 0.1949175444
A36: OK | B36: OK | E36: z toho | F36: gymnázia, včetně sportovních škol | J36: 0.04962013916 | K36: 0.04842347923 | L36: 0.04880906082 | M36: 0.0489543054 | N36: 0.0480389982 | O36: 0.04797391333 | P36: 0.04693477805 | Q36: 0.04637666803 | R36: 0.04514686387
A37: OK | B37: OK | F37: střední odborné školy a konzervatoře, včetně VOŠ | J37: 0.10436359 | K37: 0.1006101998 | L37: 0.101213015 | M37: 0.09812466552 | N37: 0.09727345574 | O37: 0.1119291636 | P37: 0.1098484448 | Q37: 0.1067604348 | R37: 0.1071134379
A38: OK | B38: OK | F38: střední odborná učiliště, učiliště, SPV | J38: 0.07631236395 | K38: 0.07182971487 | L38: 0.06983030179 | M38: 0.06316604606 | N38: 0.06108909407 | O38: 0.0483102808 | P38: 0.0472044773 | Q38: 0.0446268684 | R38: 0.04265478953
A39: OK | B39: OK | E39: Stravování žáků MŠ, ZŠ a SŠ, VOŠ | J39: 0.02422469437 | K39: 0.02099061409 | L39: 0.01968407712 | M39: 0.02009622045 | N39: 0.01995962584 | O39: 0.01990101647 | P39: 0.02141191716 | Q39: 0.02071422763 | R39: 0.01952977237
A40: OK | B40: OK | E40: Školská zařízení pro výkon ústavní a ochranné výchovy | J40: 0.009549734837 | K40: 0.009282607935 | L40: 0.007892828275 | M40: 0.008198511653 | N40: 0.007479449843 | O40: 0.01799601598 | P40: 0.01890285284 | Q40: 0.01771669593 | R40: 0.01612062623
A41: OK | B41: OK | E41: Vysoké školy | J41: 0.2131005985 | K41: 0.2206293636 | L41: 0.2229639528 | M41: 0.2216830191 | N41: 0.2050829147 | O41: 0.2038478464 | P41: 0.1977132507 | Q41: 0.1869046056 | R41: 0.2149623322
A42: OK | B42: OK | E42: Státní správa | J42: 0.004943466518 | K42: 0.005186635983 | L42: 0.005049175427 | M42: 0.004648872928 | N42: 0.004690130731 | O42: 0.004662275896 | P42: 0.004630511981 | Q42: 0.004748144131 | R42: 0.004170580258
A43: OK | B43: OK | E43: Ostatní výdaje | J43: 0.04318767756 | K43: 0.04498167454 | L43: 0.04712805476 | M43: 0.04328569139 | N43: 0.0489709103 | O43: 0.03719757039 | P43: 0.03275362548 | Q43: 0.03426606477 | R43: 0.03517958032
A44: konst | B44: stop | D44: =IF(D45="","","Komentáře:") -> Komentáře: | R44: Zdroj: monitor.statnipokladna.cz | S44: =IF(KNIHOVNA!H4=""," ","") -> 
A45: =IF(COUNTBLANK(D45:E45)=2,"odstr","OK") -> OK | D45: 1) | E45: =Komentáře!C8 -> § 3111, 3112, 3115
A46: OK | D46: 2) | E46: =Komentáře!C9 -> § 3111
A47: OK | D47: 3) | E47: =Komentáře!C10 -> § 3113, 3114, 3117, 3118, 3119, 3143
A48: OK | D48: 4) | E48: =Komentáře!C11 -> § 3113, 3117, 3118, 3143
A49: OK | D49: 5) | E49: =Komentáře!C12 -> § 3231
A50: OK | D50: 6) | E50: =Komentáře!C13 -> § 312x; 3150
A51: OK | D51: 7) | E51: =Komentáře!C14 -> § 3121, 3128
A52: stop | D52: 8) | E52: =Komentáře!C15 -> § 3122, 3124, 3126, 3127, 3150
D53: 9) | E53: =Komentáře!C16 -> § 3123, 3125
D54: 10) | E54: =Komentáře!C17 -> § 3141, 3142
D55: 11) | E55: =Komentáře!C18 -> § 313x
D56: 12) | E56: =Komentáře!C19 -> § 321x, 322x
D57: 13) | E57: =Komentáře!C20 -> § 326x
D58: 14) | E58: =Komentáře!C21 -> § 3144, 3145, 3146, 3147, 3148, 3149, 3232, 3233, 3239, 3280, 329x
D59: 15) | E59: Od ledna 2017 je nově zavedena časová řada bazických indexů se základem průměr roku 2015 = 100. Z této časové řady jsou počítány indexy k dalším základům (předchozí měsíc = 100, stejné období předchozího roku = 100 a index klouzavých průměrů za posledních 12 měsíců k průměru 12 předcházejících měsíců). Indexy vypočtené z dosavadní časové řady bazických indexů průměr roku 2005 = 100 zůstávají platné, nedochází k revizi již publikovaných údajů.

Sheet A7 (hidden)
A1: =IF(KNIHOVNA!C4="","ŠABLONA",IF(KNIHOVNA!C4="T","TISK","ELEKTRO")) -> ŠABLONA | B1: 0 | C1: =CONCATENATE(D1,F1,IF(G1<>"",".",""),G1,IF(H1<>"",".",""),H1,IF(I1<>"",".",""),I1,"") -> A7 | D1: =IF(KNIHOVNA!J4=""," ?",KNIHOVNA!J4) -> A | E1: =CONCATENATE(C1,N1) -> A7 | F1: 7 | O1: pro CD
A2: konst
A3: konst | B3: 9x4 | D3: Tab. A7: | H3: Vybrané ukazatele kapitoly 333-MŠMT
A4: konst | B4: 36 | D4: Tab. A7: | H4: Vybrané ukazatele kapitoly 333-MŠMT
A5: odstr | B5: 0
A6: =IF(COUNTBLANK(C6:IV6)=254,"odstr","OK") -> odstr | B6: Řádky pro
A7: =IF(COUNTBLANK(C7:IV7)=254,"odstr","OK") -> odstr | B7: ročenku PaM
A8: konst | D8: (podle stavu k: 31. 12. 2018) | R8: v tis. Kč
A9: konst | J9: 2016 | K9: 2017 | N9: Skutečnost 2017 | O9: 2018 | R9: Skutečnost 2018
A10: konst
A11: konst | K11: schválený | L11: změny | M11: po změnách | O11: schválený | P11: změny | Q11: po změnách
A12: konst
A13: konst
A14: =IF(COUNTBLANK(C14:IV14)=254,"odstr",IF(AND($A$1="TISK",SUM(K14:N14)=0),"odstr","OK")) -> OK | B14: OK | E14: Příjmy celkem | J14: 18163412.76 | K14: 8645045.51 | L14: 0 | M14: 8645045.51 | N14: 3274552.89 | O14: 7192982.16 | P14: 0 | Q14: 13900115.2 | R14: 8248802.81
A15: OK | B15: OK | F15: z toho příjmy z rozpočtu EU bez SZP | J15: 17836519.82 | K15: 8511210.75 | L15: 0 | M15: 8511210.75 | N15: 3001801.63 | O15: 7086030.16 | P15: 0 | R15: 8077242.17
A16: OK | B16: OK | E16: Výdaje celkem | J16: 140564292.9 | K16: 156525862.2 | L16: 2975887.1 | M16: 159501749.3 | N16: 157511440 | O16: 176111709.9 | P16: 7441302.27 | Q16: 183553012.2 | R16: 187415570.9
A17: OK | B17: OK | E17: v tom | F17: věda a vysoké školství | J17: 36658056.06 | K17: 41948282.89 | L17: -17047.48 | M17: 41931235.41 | N17: 38322363.33 | O17: 43363562.55 | P17: -683911.63 | Q17: 42679650.92 | R17: 45415500.87
A18: OK | B18: OK | F18: výdaje regionálního školství | J18: 97031593.03 | K18: 103645244.2 | L18: 3727684.76 | M18: 107372928.9 | N18: 107264993.4 | O18: 120947128.3 | P18: 1135198.82 | Q18: 122082327.1 | R18: 121533322.5
A19: OK | B19: OK | F19: podpora činnosti v oblasti mládeže | J19: 255385.3576 | K19: 231532.39 | L19: 49450 | M19: 280982.39 | N19: 270104.89 | O19: 280782.39 | P19: -550 | Q19: 280232.39 | R19: 298011.75
A20: OK | B20: OK | F20: podpora činnosti v oblasti sportu | J20: 3449326.902 | K20: 5644729.26 | L20: -570968.74 | M20: 5073760.52 | N20: 4253128.75 | O20: 5449374.18 | P20: -135854.25 | Q20: 5313519.93 | R20: 5519010.81
A21: OK | B21: OK | F21: výdaje na programy spolufinancované z rozpočtu EU mimo VaV | J21: 1353269.699 | K21: 3136601.48 | L21: -271540.45 | M21: 2865061.03 | N21: 5499054.24 | O21: 3899260.93 | P21: 7096493.72 | Q21: 10995754.65 | R21: 12565338.69
A22: OK | B22: OK | F22: ostatní výdaje na zabezpečení úkolů resortu školství | J22: 1816661.837 | K22: 1919471.98 | L22: 58309.01 | M22: 1977780.99 | N22: 1901795.38 | O22: 2171601.55 | P22: 29925.61 | Q22: 2201527.16 | R22: 2084386.24
A23: konst | B23: stop | D23: =IF(D24="","","Komentáře:") ->  | R23: Zdroj: Závěrečný účet – kapitola 333-MŠMT
A24: =IF(COUNTBLANK(D24:E24)=2,"odstr","OK") -> odstr
A25: =IF(COUNTBLANK(D25:E25)=2,"odstr","OK") -> odstr
A26: stop

Sheet B (hidden)
A1: Paragraf | D1: Název | G1: Kapitola 333-MŠMT | I1: Transfery z kapitoly 333-MŠMT | K1: Kapitola 700-Obce a DSO; KÚ(vzdělávání)1) | M1: Celkem
G5: v tis. Kč | H5: % z cel. výdajů | I5: v tis. Kč | J5: % z cel. výdajů | K5: v tis. Kč | L5: % z cel. výdajů | M5: v tis. Kč | N5: % z cel. výdajů
B6: SKUPINA 3 – služby pro obyvatelstvo | G6: 137937379.6 | H6: 0.9982118032 | I6: -85109626.27 | J6: -0.9999633173 | K6: 115597962.3 | L6: 0.9854685928 | M6: 168425715.7 | N6: 0.9885631216
D7: 31–32 – vzdělávání | G7: 124197622.8 | H7: 0.8987812685 | I7: -84756049.61 | J7: -0.9958091023 | K7: 113277306.8 | L7: 0.9656850851 | M7: 152718880 | N7: 0.8963729328
B8: 3111 | D8: předškolní zařízení | G8: 51065 | H8: 0.0003695422217 | I8: 0 | J8: 0 | K8: 16514858.96 | L8: 0.140788596 | M8: 16565923.96 | N8: 0.0972325481 | O8: =M8/1000 -> 16565.92396 | P8: =G8+I8+K8-M8 -> 0
B9: 3112 | D9: speciální předškolní zařízení | G9: 25239 | H9: 0.0001826471386 | I9: 0 | J9: 0 | K9: 342374.26 | L9: 0.002918728613 | M9: 367613.26 | N9: 0.002157680675 | O9: 367.61326 | P9: 0
B10: 3113 | D10: základní školy | G10: 1820719.311 | H10: 0.0131760043 | I10: -1557983.901 | J10: -0.01830494173 | K10: 42506436.57 | L10: 0.3623658877 | M10: 42769171.98 | N10: 0.2510307051 | O10: 42769.17198 | P10: 0
B11: 3114 | D11: speciální základní školy | G11: 322150.64 | H11: 0.002331308396 | I11: 0 | J11: 0 | K11: 4181781.45 | L11: 0.03564954086 | M11: 4503932.09 | N11: 0.02643551876 | O11: 4503.93209 | P11: 0
B12: 3117 | D12: první stupeň základních škol | G12: 0 | H12: 0 | I12: 0 | J12: 0 | K12: 3882769.82 | L12: 0.03310047715 | M12: 3882769.82 | N12: 0.02278964966 | O12: 3882.76982 | P12: 0
B13: 3118 | D13: druhý stupeň základních škol | G13: 0 | H13: 0 | I13: 0 | J13: 0 | K13: 13911.63 | L13: 0.00011859616 | M13: 13911.63 | N13: 8.165335277e-05 | O13: 13.91163 | P13: 0
B14: 3119 | D14: ostatní záležitosti předškolní výchovy a základního vzdělávání | G14: 0 | H14: 0 | I14: 0 | J14: 0 | K14: 581683.42 | L14: 0.004958830846 | M14: 581683.42 | N14: 0.003414150714 | O14: 581.68342 | P14: 0
B15: 3121 | D15: gymnázia | G15: 538377.27 | H15: 0.003896076226 | I15: -203245.7981 | J15: -0.002387959522 | K15: 7123710.72 | L15: 0.06072938517 | M15: 7458842.192 | N15: 0.0437791598 | O15: 7458.842192 | P15: 0
B16: 3122 | D16: střední odborné školy | G16: 677524.2036 | H16: 0.004903041212 | I16: -494604.6736 | J16: -0.005811170274 | K16: 12372220.32 | L16: 0.1054727463 | M16: 12555139.85 | N16: 0.0736915274 | O16: 12555.13985 | P16: 0
B17: 3123 | D17: střední odborná učiliště a učiliště | G17: 64433.19561 | H17: 0.0004662838786 | I17: -28935.7104 | J17: -0.0003399691695 | K17: 10684187.93 | L17: 0.09108232907 | M17: 10719685.42 | N17: 0.06291845419 | O17: 10719.68542 | P17: 0
B18: 3124 | D18: speciální střední školy | G18: 263505.5724 | H18: 0.001906911479 | I18: -13036.968 | J18: -0.0001531729176 | K18: 936823.45 | L18: 0.007986387203 | M18: 1187292.054 | N18: 0.006968728824 | O18: 1187.292054 | P18: 0
B19: 3125 | D19: střediska praktického vyučování a školní hospodářství | G19: 0 | H19: 0 | I19: 0 | J19: 0 | K19: 76968.95 | L19: 0.0006561576114 | M19: 76968.95 | N19: 0.0004517639433 | O19: 76.96895 | P19: 0
B20: 3126 | D20: konzervatoře | G20: 61239.5568 | H20: 0.0004431724641 | I20: -3076.2042 | J20: 3.614269609e-05 | K20: 591200.12 | L20: 0.005039960382 | M20: 649363.4726 | N20: 0.003811394115 | O20: 649.3634726 | P20: 0
B21: 3128 | D21: sportovní školy – gymnázia | G21: 74681.4466 | H21: 0.0005404474239 | I21: -74681.4466 | J21: -0.0008774413701 | K21: 81022.62 | L21: 0.0006907150067 | M21: 81022.62 | N21: 0.0004755566798 | O21: 81.02262 | P21: 0
B22: 3129 | D22: ostatní zařízení středního vzdělávání | G22: 880504.4958 | H22: 0.006371949234 | I22: 0 | J22: 0 | K22: 14 | L22: 1.193495112e-07 | M22: 880518.4958 | N22: 0.00516814258 | O22: 880.5184958 | P22: 0
B23: 3131 | D23: výchovné ústavy a dětské domovy se školou | G23: 336256.285 | H23: 0.002433386755 | I23: 0 | J23: 0 | K23: 3478.77 | L23: 2.965639279e-05 | M23: 339735.055 | N23: 0.001994051473 | O23: 339.735055 | P23: 0
B24: 3132 | D24: diagnostické ústavy | G24: 18592 | H24: 0.000134544776 | I24: 0 | J24: 0 | K24: 52.26 | L24: 4.455146754e-07 | M24: 18644.26 | N24: 0.0001094311981 | O24: 18.64426 | P24: 0
B25: 3139 | D25: ostatní školská zařízení pro výkon ústavní a ochranné výchovy | G25: 0 | H25: 0 | I25: 0 | J25: 0 | K25: 40 | L25: 3.409986034e-07 | M25: 40 | N25: 2.347772411e-07 | O25: 0.04 | P25: 0
B26: 3141 | D26: školní stravování při předškolním a základním vzdělávání | G26: 56770 | H26: 0.0004108276105 | I26: 0 | J26: 0 | K26: 2413030.29 | L26: 0.02057099897 | M26: 2469800.29 | N26: 0.01449632246 | O26: 2469.80029 | P26: 0
B27: 3142 | D27: ostatní školní stravování | G27: 55233 | H27: 0.0003997047985 | I27: 0 | J27: 0 | K27: 555016.82 | L27: 0.004731499013 | M27: 610249.82 | N27: 0.003581819228 | O27: 610.24982 | P27: 0
B28: 3143 | D28: školní družiny a kluby | G28: 64520 | H28: 0.0004669120561 | I28: 0 | J28: 0 | K28: 1166100.93 | L28: 0.009940969715 | M28: 1230620.93 | N28: 0.00722304467 | O28: 1230.62093 | P28: 0
B29: 3144 | D29: školy v přírodě | G29: 0 | H29: 0 | I29: 0 | J29: 0 | K29: 20662.6 | L29: 0.0001761479436 | M29: 20662.6 | N29: 0.0001212777056 | O29: 20.6626 | P29: 0
B30: 3145 | D30: internáty | G30: 207125.4896 | H30: 0.001498905583 | I30: 0 | J30: 0 | K30: 73798.98 | L30: 0.0006291337279 | M30: 280924.4696 | N30: 0.001648866799 | O30: 280.9244696 | P30: 0
B31: 3146 | D31: zařízení výchovného poradenství a preventivně výchovné péče | G31: 46647 | H31: 0.0003375704694 | I31: 0 | J31: 0 | K31: 597883.93 | L31: 0.005096939629 | M31: 644530.93 | N31: 0.003783029839 | O31: 644.53093 | P31: 0
B32: 3147 | D32: domovy mládeže | G32: 664.613 | H32: 4.80960667e-06 | I32: 0 | J32: 0 | K32: 651386.74 | L32: 0.005553049216 | M32: 652051.353 | N32: 0.003827170443 | O32: 652.051353 | P32: 0
B33: 3149 | D33: ostatní zařízení související s výchovou a vzděláváním mládeže | G33: 0 | H33: 0 | I33: -664.613 | J33: 7.808618711e-06 | K33: 319251.56 | L33: 0.002721608403 | M33: 318586.947 | N33: 0.001869924112 | O33: 318.586947 | P33: 0
B34: 3150 | D34: vyšší odborné školy | G34: 124466.5988 | H34: 0.0009007277678 | I34: -41580.98253 | J34: -0.0004885400048 | K34: 464197.72 | L34: 0.003957269356 | M34: 547083.3363 | N34: 0.003211067909 | O34: 547.0833363 | P34: 0
B35: 3211 | D35: činnost vysokých škol | G35: 22112965.5 | H35: 0.1600249565 | J35: 0 | K35: 15847.26 | L35: 0.0001350973382 | M35: 22128812.76 | N35: 0.1298835403 | O35: 22128.81276 | P35: 0
B36: 3212 | D36: výzkum a vývoj na vysokých školách | G36: 11016403.17 | H36: 0.07972243423 | J36: 0 | K36: 130.67 | L36: 1.113957188e-06 | M36: 11016533.84 | N36: 0.06466078556 | O36: 11016.53384 | P36: 0
B37: 3213 | D37: bakalářské studium | G37: 0 | H37: 0 | J37: 0 | K37: 158.99 | L37: 1.355384199e-06 | M37: 158.99 | N37: 9.331808392e-07 | O37: 0.15899 | P37: 0
B38: 3214 | D38: magisterské a doktorské studium | G38: 0 | H38: 0 | J38: 0 | K38: 15 | L38: 1.278744763e-07 | M38: 15 | N38: 8.804146542e-08 | O38: 0.015 | P38: 0
B39: 3221 | D39: vysokoškolské koleje a menzy | G39: 181764 | H39: 0.001315372024 | J39: 0 | K39: 0 | L39: 0 | M39: 181764 | N39: 0.001066851261 | O39: 181.764 | P39: 0
B40: 3229 | D40: ostatní zařízení související s vysokoškolským vzděláváním | G40: 0 | H40: 0 | J40: 0 | K40: 736.78 | L40: 6.281023776e-06 | M40: 736.78 | N40: 4.324479393e-06 | O40: 0.73678 | P40: =G40+I40+K40-M40 -> 0
B41: 3231 | D41: základní umělecké školy | G41: 10828 | H41: 7.835901649e-05 | J41: 0 | K41: 3898226.36 | L41: 0.03323224362 | M41: 3909054.36 | N41: 0.02294392495 | O41: 3909.05436 | P41: 0
B42: 3239 | D42: záležitosti zájmového studia jinde nezařazené | G42: 0 | H42: 0 | J42: 0 | K42: 52773.71 | L42: 0.0004498940352 | M42: 52773.71 | N42: 0.0003097516509 | O42: 52.77371 | P42: 0
B43: 3261 | D43: činnost ústředního orgánu státní správy ve vzdělávání | G43: 349951.8021 | H43: 0.00253249714 | J43: 0 | K43: 0 | L43: 0 | M43: 349951.8021 | N43: 0.002054017966 | O43: 349.9518021 | P43: 0
B44: 3262 | D44: činnost ostatních orgánů státní správy ve vzdělávání | G44: 383866.8189 | H44: 0.002777930033 | J44: 0 | K44: 0 | L44: 0 | M44: 383866.8189 | N44: 0.002253079818 | O44: 383.8668189 | P44: 0
B45: 3269 | D45: ostatní správa ve vzdělávání jinde nezařazená | G45: 15945.36231 | H45: 0.000115391846 | J45: 0 | K45: 34647.77 | L45: 0.0002953710295 | M45: 50593.13231 | N45: 0.0002969529006 | O45: 50.59313231 | P45: 0
B46: 3280 | D46: výzkum školství a vzdělávání | G46: 0 | H46: 0 | J46: 0 | K46: 0 | L46: 0 | M46: 0 | N46: 0 | O46: 0 | P46: 0
B47: 3291 | D47: mezinárodní spolupráce ve vzdělávání | G47: 11806.36025 | H47: 8.543911872e-05 | J47: 0 | K47: 7087.07 | L47: 6.041702431e-05 | M47: 18893.43025 | N47: 0.0001108936857 | O47: 18.89343025 | P47: 0
B48: 3292 | D48: vzdělávání národnostních menšin a multikulturní výchova | G48: 12789.23 | H48: 9.255185486e-05 | I48: -1347 | J48: -1.58260663e-05 | K48: 1930.22 | L48: 1.645505811e-05 | M48: 13372.45 | N48: 7.848867295e-05 | O48: 13.37245 | P48: 0
B49: 3293 | D49: vzdělávací akce k integraci Romů | G49: 22034.391 | H49: 0.0001594563361 | I49: -5282.984 | J49: -6.20704195e-05 | K49: 1304.11 | L49: 1.111749222e-05 | M49: 18055.517 | N49: 0.0001059756117 | O49: 18.055517 | P49: 0
B50: 3299 | D50: ostatní záležitosti vzdělávání | G50: 84389553.52 | H50: 0.6107021071 | I50: -82331609.33 | J50: -0.9673240595 | K50: 3109584 | L50: 0.02650909503 | M50: 5167528.187 | N50: 0.03033045028 | O50: 5167.528187 | P50: 0
D51: 33 – kultura, církve a sdělovací prostředky | G51: 193787.4807 | H51: 0.001402382379 | I51: 0 | J51: 0 | L51: x | M51: 193787.4807 | N51: 0.001137422252 | P51: 0
B52: 3314 | D52: činnosti knihovnické | G52: 156585.9 | H52: 0.0011331656 | I52: 0 | J52: 0 | L52: x | M52: 156585.9 | N52: 0.00091907014 | O52: =M52/1000 -> 156.5859 | P52: 0
B53: 3315 | D53: činnosti muzeí a galerií | G53: 37201.5807 | H53: 0.0002692167783 | I53: 0 | J53: 0 | L53: x | M53: 37201.5807 | N53: 0.0002183521121 | O53: =M53/1000 -> 37.2015807 | P53: 0
D54: 34 – tělovýchova a zájmová činnost | G54: 3212884.652 | H54: 0.02325069094 | I54: -71943.35375 | J54: -0.0008452711853 | K54: 2170604.14 | L54: x | M54: 5311545.439 | N54: 0.03117574961 | P54: 0
B55: 3411 | D55: státní sportovní reprezentace | G55: 829661.7516 | H55: 0.006004015412 | J55: 0 | L55: x | M55: 829661.7516 | N55: 0.004869642428 | O55: =M55/1000 -> 829.6617516 | P55: 0
B56: 3419 | D56: ostatní tělovýchovná činnost | G56: 2074082.443 | H56: 0.01500951795 | I56: -46065.892 | J56: -0.0005412337499 | L56: x | M56: 2028016.551 | N56: 0.01190330327 | O56: =M56/1000 -> 2028.016551 | P56: 0
B57: 3421 | D57: využití volného času dětí a mládeže | G57: 309140.4574 | H57: 0.002237157573 | I57: -25877.46175 | J57: 0.0003040374354 | K57: 2170604.14 | L57: x | M57: 2453867.136 | N57: 0.0144028039 | O57: =M57/1000 -> 2453.867136 | P57: 0
D58: 35 – zdravotnictví | G58: 11673.683 | H58: 8.447897291e-05 | I58: -2538.218 | J58: -2.9821831e-05 | L58: x | M58: 9135.465 | N58: 5.361998173e-05 | P58: 0
B59: 3541 | D59: prevence před drogami, alkoholem, nikotinem a jinými návykovými látkami | G59: 11673.683 | H59: 8.447897291e-05 | I59: -2538.218 | J59: -2.9821831e-05 | L59: x | M59: 9135.465 | N59: 5.361998173e-05 | O59: =M59/1000 -> 9.135465 | P59: 0
D60: 37 – ochrana životního prostředí | O60: =M60/1000 -> 0 | P60: 0
B61: 3745 | D61: péče o veřejnou zeleň a vzhled obcí | O61: =M61/1000 -> 0 | P61: 0
D62: 38 – výzkum a vývoj odvětvově nespecifikovaný | G62: 10321410.98 | H62: 0.0746929824 | I62: -279095.086 | J62: 0.003279122001 | K62: 150051.43 | L62: x | M62: 10192367.33 | N62: 0.05982339704 | P62: 0
B63: 3809 | D63: ostatní výzkum a vývoj odvětvově nespecifikovaný | G63: 10321410.98 | H63: 0.0746929824 | I63: -279095.086 | J63: 0.003279122001 | K63: 150051.43 | L63: x | M63: 10192367.33 | N63: 0.05982339704 | O63: =M63/1000 -> 10192.36733 | P63: 0
B64: SKUPINA 4 – sociální věci a politika zaměstnanosti | G64: 148419.7867 | H64: 0.001074069866 | I64: 0 | J64: 0 | K64: 1704570.87 | L64: x | M64: 1852990.657 | N64: 0.01087600086 | P64: 0
D65: 43 – sociální péče a pomoc a společné činnosti v sociálním zabezpečení a politice zaměstnanosti | G65: 148419.7867 | H65: 0.001074069866 | I65: 0 | J65: 0 | K65: 1704570.87 | L65: x | M65: 1852990.657 | N65: 0.01087600086 | P65: 0
B66: 4313 | D66: soc. ústavy pro zdr. postiž. mládež včetně diag. ústavů | G66: 0 | H66: 0 | I66: 0 | J66: 0 | K66: 0 | L66: x | M66: 0 | N66: 0 | O66: =M66/1000 -> 0 | P66: 0
B67: 4322 | D67: ústavy péče pro mládež (dětské domovy) | G67: 148419.7867 | H67: 0.001074069866 | I67: 0 | J67: 0 | K67: 1704570.87 | L67: x | M67: 1852990.657 | N67: 0.01087600086 | O67: =M67/1000 -> 1852.990657 | P67: 0
B68: SKUPINA 5 – bezpečnost státu a právní ochrana | G68: 8128.924 | H68: 5.8826606e-05 | I68: -2617.265 | J68: -3.075056379e-05 | L68: x | M68: 5511.659 | N68: 3.235030235e-05 | P68: 0
D69: 52 – civilní připravenost na krizové stavy | G69: 0 | H69: 0 | I69: 0 | J69: 0 | L69: x | M69: 0 | N69: 0 | O69: =M69/1000 -> 0 | P69: 0
B70: 5299 | D70: ostatní záležitosti civilní připravenosti na krizové stavy | G70: 0 | H70: 0 | I70: 0 | J70: 0 | L70: x | M70: 0 | N70: 0 | O70: =M70/1000 -> 0 | P70: 0
D71: 53 – bezpečnost a veřejný pořádek | G71: 8128.924 | H71: 5.8826606e-05 | I71: -2617.265 | J71: -3.075056379e-05 | L71: x | M71: 5511.659 | N71: 3.235030235e-05 | P71: 0
B72: 5399 | D72: ostatní záležitosti bezpečnosti, veřejného pořádku | G72: 8128.924 | H72: 5.8826606e-05 | I72: -2617.265 | J72: -3.075056379e-05 | L72: x | M72: 5511.659 | N72: 3.235030235e-05 | O72: =M72/1000 -> 5.511659 | P72: =G72+I72+K72-M72 -> 0
B73: SKUPINA 6 – všeobecná veřejná správa a služby | G73: 90552.333 | H73: 0.0006553003098 | I73: -504.9 | J73: -5.932131312e-06 | L73: x | M73: 90047.433 | N73: 0.0005285271973 | P73: 0
D74: 62 – jiné veřejné služby a činnosti | G74: 90552.333 | H74: 0.0006553003098 | I74: -504.9 | J74: -5.932131312e-06 | L74: x | M74: 90047.433 | N74: 0.0005285271973 | P74: 0
B75: 6221 | D75: humanitární zahraniční pomoc | G75: 6085.333 | H75: 4.403774556e-05 | I75: -504.9 | J75: -5.932131312e-06 | L75: x | M75: 5580.433 | N75: 3.27539666e-05 | O75: =M75/1000 -> 5.580433 | P75: 0
B76: 6222 | D76: rozvojová zahraniční pomoc | G76: 84467 | H76: 0.0006112625643 | I76: 0 | J76: 0 | L76: x | M76: 84467 | N76: 0.0004957732307 | O76: =M76/1000 -> 84.467 | P76: 0
B77: Celkem výdaje | G77: 138184480.7 | H77: 1 | I77: -85112748.43 | J77: -1 | K77: 117302533.2 | L77: 1 | M77: 170374265.4 | N77: 1 | P77: 0
D80: Obrana | E80: 3113 | F80: 1280.6 | H80: =F80/1000 -> 1.2806 | I80: Až budou data zakutalizovat | P80: 3786.93 | Q80: 2900
E81: 3122 | F81: 63705.15 | H81: 63.70515 | P81: 66440.73
E82: 3126 | F82: 0 | H82: 0 | P82: 796507.1
E83: 3211 | F83: 829333.07 | H83: 829.33307 | P83: 88938.27
E84: 3212 | F84: 101285.49 | H84: 101.28549 | P84: 955673.03
F85: =SUM(F80:F84) -> 995604.31 | H85: 995.60431 | M85: 163069.0874
H86: =H85-G84/1000 -> 995.60431 | M86: 163000.931
M87: =M85-M86 -> 68.15637
M89: 158989.6556
M91: 36792.08926
M92: 81009.50021
M93: =M91+M92 -> 117801.5895
M96: 1093.52692
M97: -3.27

Sheet Komentáře (hidden)
C3: KOMENTÁŘE K TABULKÁM V SEŠITU - texty delší než 255 znaků zkraťte, nebo rozdělte do 2 řádků. | E3: 21.5.2004 12:51:11
D4: Počet znaků | E4: Použití komentářů
C5: Celkové výdaje na vzdělávání a školské služby - Oddíl 31 a 32 odvětvového třídění rozpočtové skladby po konsolidaci na úrovni územních rozpočtů a státního rozpočtu. | D5: =LEN(C5) -> 164 | E5: A1 A2
C6: Konsolidovány položky rozpočtové skladby: na úrovni územních rozpočtů - 5321, 5323, 5325, 5329, 5342, 5344, 5345, 5347, 5349, 5366, 5367, 5368, 5369, 5641, 5642, 5643, 5649, 6341, 6342, 6345, 6349, 6441, 6442, 6443, 6449; | D6: 222 | E6: A1 A2
C7: Konsolidovány položky rozpočtové skladby: na úrovni státního rozpočtu - 5321, 5323, 5329, 5342, 5345, 5346, 5349, 6341, 6342, 6343, 6344, 6345, 6349, 6361, 6362 a podseskupení položek 64xx. | D7: 189 | E7: A1 A2
C8: § 3111, 3112, 3115 | D8: =LEN(C8) -> 18
C9: § 3111 | D9: =LEN(C9) -> 6 | E9: A5 A6
C10: § 3113, 3114, 3117, 3118, 3119, 3143 | D10: 36 | E10: A5 A6
C11: § 3113, 3117, 3118, 3143 | D11: 24 | E11: A5 A6
C12: § 3231 | D12: 6
C13: § 312x; 3150 | D13: 12 | E13: A1 A2
C14: § 3121, 3128 | D14: 12 | E14: A1 A2
C15: § 3122, 3124, 3126, 3127, 3150 | D15: 30 | E15: A7
C16: § 3123, 3125 | D16: =LEN(C8) -> 18
C17: § 3141, 3142 | D17: 12
C18: § 313x | D18: 6
C19: § 321x, 322x | D19: 12
C20: § 326x | D20: 6
C21: § 3144, 3145, 3146, 3147, 3148, 3149, 3232, 3233, 3239, 3280, 329x | D21: 66
D22: 0
D23: 0
D24: 0
D25: 0
D26: 0
D27: 0
D28: 0
D29: 0
D30: 0
D31: 0
D32: 0
D33: 0
D34: 0
D35: 0
D36: 0
D37: =LEN(C37) -> 0
D38: 0
D39: 0
D40: 0
D41: 0
D42: 0
D43: 0
D44: 0
D45: 0
D46: 0
D47: 0
D48: 0
D49: 0
D50: 0
D51: 0
D52: 0
D53: 0
D54: 0
D55: 0
D56: 0
D57: 0
D58: 0
D59: 0
D60: 0
D61: 0
D62: 0
D63: 0
D64: 0
D65: 0
D66: 0
D67: 0
D68: 0
D69: =LEN(C69) -> 0
D70: 0
D71: 0
D72: 0
D73: 0
D74: 0
D75: 0
D76: 0
D77: 0
D78: 0
D79: 0
D80: 0
D81: 0
D82: 0
D83: 0
D84: 0
D85: 0
D86: 0
D87: 0
D88: 0
D89: 0
D90: 0
D91: 0
D92: 0
D93: 0
D94: 0
D95: 0
D96: 0
D97: 0
D98: 0
D99: 0
D100: 0

Sheet KNIHOVNA (hidden)
L2: 21.5.2004 12:51:11
C3: Varianta | E3: Údaje ke sběru dat | F3: Rok | H3: Zdroj dat | J3: Kapitola | L3: Použití zdrojů
E4: 31. 12. | F4: 2013 | H4: Státní závěrečný účet ČR, Závěrečný účet – kapitola 333-MŠMT, 700-Obce a DSO; KÚ, 380-OkÚ, MZe-329, 307-MO, ČSÚ | J4: A | K4: t | L4: A1 A2
H5: Závěrečný účet – kapitola 333-MŠMT, 700-Obce a DSO; KÚ, 380-OkÚ, 307-MO, ČSÚ | J5: Ročenka | L5: A3 A4
H6: Závěrečný účet – kapitola 333-MŠMT, 700-Obce a DSO; KÚ, 380-OkÚ, 307-MO, 329-MZe | J6: ekonom | L6: A5 A6
H7: Závěrečný účet – kapitola 333-MŠMT | L7: A7
